Cogmind - Beta 14 @@@ ROGUE MODE // 2025.05.01 @ 14:04:11 Player: celerysam Result: Destroyed by Y-45 Defender with Heavy Assault Rifle Performance ------------- Evolutions (0) 0 Regions Visited (4) 800 Robots Destroyed (11) 55 Value Destroyed (333) 333 Prototype IDs (13) 260 Alien Tech Used (0) 0 Bonus (196) 196 TOTAL SCORE: 1644 Bonus ------- Follower Combat Kills 196 Cogmind --------- Core Integrity 0/250 Matter 300/300 Energy 142/160 System Corruption 0% Temperature Cool (0) Movement Rolling (107) Ox1 Location -9/Recycling Parts ------- > --- POWER (1) -------- Light Nuclear Core > --- PROPULSION (2) --- Wheel Subdweller Monowheel > --- UTILITY (2) ------ High-capacity Storage Unit Experimental Sensor Array > --- WEAPON (2) ------- Heavy Flail > --- INVENTORY (20) --- Subdweller Monowheel Compact Battery (200) Decoy Drone Bay V3-11A's Pendant SUBCON Basin (Full) Peak State ------------ > --- POWER ------------ Light Nuclear Core > --- PROPULSION ------- Wheel Subdweller Monowheel > --- UTILITY ---------- High-capacity Storage Unit Experimental Sensor Array > --- WEAPON ----------- Heavy Flail > --- INVENTORY -------- Subdweller Monowheel Compact Battery Decoy Drone Bay V3-11A's Pendant SUBCON Basin [Rating: 39] Favorites ----------- Power Light Nuclear Core Engine Ion Engine Power Core Light Nuclear Core Propulsion Wheel Treads Light Treads Leg Aluminum Leg Wheel Wheel Utility High-capacity Storage Unit Device V3-11A's Pendant Storage High-capacity Storage Unit Protection Makeshift Light Armor Plating Weapon Light Cannon Energy Gun Particle Gun Energy Cannon EM Pulse Cannon Ballistic Gun High-powered Shotgun Ballistic Cannon Light Cannon Launcher Grenade Launcher Impact Weapon Heavy Flail Build | -11 -10 -10 -10 -9 ------- Run | Yrd Mat Min Sub Rec Slots Evolved . | . . . . . Power . | . . . . . Propulsion . | . . . . . Utility . | . . . . . Weapon . | . . . . . Parts Attached 27 | 7 5 2 12 1 Power 3 | 1 1 . 1 . Engine 2 | 1 1 . . . Core 1 | . . . 1 . Reactor . | . . . . . Propulsion 7 | 2 2 . 3 . Treads 2 | . 2 . . . Leg 2 | 2 . . . . Wheel 3 | . . . 3 . Hover . | . . . . . Flight . | . . . . . Utility 6 | 1 1 1 2 1 Device 2 | . . . 1 1 Storage 3 | 1 1 1 . . Processor . | . . . . . Hackware . | . . . . . Protection 1 | . . . 1 . Artifact . | . . . . . Weapon 11 | 3 1 1 6 . Energy Gun 3 | 1 1 . 1 . Energy Cannon 1 | . . . 1 . Ballistic Gun 3 | 2 . 1 . . Ballistic Cannon 1 | . . . 1 . Launcher 2 | . . . 2 . Special Weapon . | . . . . . Impact Weapon 1 | . . . 1 . Slashing Weapon . | . . . . . Piercing Weapon . | . . . . . Special Melee Weapon . | . . . . . Unidentified Prototypes 2 | . . . 1 1 Parts Lost 3 | . . . 2 1 Power 1 | . . . 1 . Propulsion 1 | . . . 1 . Utility . | . . . . . Weapon 1 | . . . . 1 Highest Loss Streak 2 | . . . 2 1 To Critical Strikes . | . . . . . Average Slot Usage (%) 97 | . 85 98 99 97 Engine 6 | . 14 14 1 . Core 7 | . . . 12 14 Treads 11 | . 16 28 3 . Wheel 15 | . . . 24 28 Device 5 | . . . 8 14 Storage 20 | . 14 26 18 14 Energy Gun 6 | . 14 14 2 . Energy Cannon 1 | . . . 3 . Ballistic Gun 5 | . 14 14 1 . Ballistic Cannon 7 | . . . 12 11 Impact Weapon 5 | . . . 7 14 Peak Build Rating 39 | 6 9 16 34 39 Average Rating 20 | 3 7 14 24 33 On Entrance 12 | . 6 8 16 34 Naked Turns . | . . . . . Heaviest Build 58 | 13 50 52 58 52 Greatest Support 40 | 20 40 40 40 30 Greatest Overweight (x) 2 | 1 1 1 2 1 Average Overweight (x) 1 | . . 1 1 1 Largest Inventory Capacity 20 | 8 20 20 20 20 Average Capacity 19 | 7 14 20 20 20 Most Carried 20 | 8 9 18 20 20 Average Carried 17 | 5 7 15 19 20 Final Capacity 20 | 8 20 20 20 20 Final Carried 20 | 6 9 18 20 20 Class Distribution -------------------- 100% | Mutant Dominant Class ---------------- Mutant | -10/Materials Mutant | -10/Mines Mutant | -10/Subcaves Mutant | -9/Recycling Resources | -11 -10 -10 -10 -9 ----------- Run | Yrd Mat Min Sub Rec Matter Collected 666 | 241 . 163 252 10 Remotely . | . . . . . Salvage Created 279 | . 71 144 64 . Parts 20 | . 4 10 6 . Haulers Intercepted . | . . . . . Recyclers Shooed . | . . . . . Parts Field Recycled . | . . . . . Retrieved Matter . | . . . . . Parts Self-Destructed 13 | . . . 13 . Prevented . | . . . . . Kills | -11 -10 -10 -10 -9 ------- Run | Yrd Mat Min Sub Rec Combat Hostiles Destroyed 11 | . 2 6 3 . Guns 8 | . 2 6 . . Cannons 2 | . . . 2 . AOE 1 | . . . 1 . Classes Destroyed 3 | . 1 1 1 . Swarmer 3 | . . 3 . . Grunt 5 | . 2 3 . . Subdweller 3 | . . . 3 . Best Kill Streak 3 | . 2 3 2 . Combat Bots Only 3 | . 2 3 2 . Max Kills in Single Turn 1 | . 1 1 1 . Gunslinging . | . . . . . Exploded 1 | . . . 1 . Melee . | . . . . . Uniques/NPCs Destroyed . | . . . . . Combat | -11 -10 -10 -10 -9 -------- Run | Yrd Mat Min Sub Rec Hostile Shots Fired 132 | . 15 30 79 8 Missed 43 | . 2 7 33 1 Damage Taken 1089 | . 175 220 473 221 Core 262 | . 37 39 97 89 Absorbed by Shields . | . . . . . Core Remaining (%) 100 | 100 . . . . Volleys Fired 41 | . 8 13 20 . Largest 2 | . 2 2 2 . Hottest 98 | . 60 90 98 . Shots Fired 81 | . 16 26 39 . Gun 42 | . 16 26 . . Cannon 33 | . . . 33 . Launcher 6 | . . . 6 . Special . | . . . . . Kinetic 41 | . 8 13 20 . Thermal 21 | . 8 13 . . Explosive 6 | . . . 6 . Electromagnetic 13 | . . . 13 . Robot Hit Streak 11 | . 3 11 6 . Robot Miss Streak 2 | . 2 2 1 . Penetration Max . | . . . . . Secondary Targets 2 | . . 2 . . Max Gunslinging Chain 1 | . . 1 . . Shots Hit Robots 45 | . 9 21 15 . Core Hits 18 | . 5 8 5 . Critical Kills 1 | . 1 . . . Critical Parts Destroyed . | . . . . . Critical Strikes 1 | . 1 . . . Destroy 1 | . 1 . . . Melee Attacks 16 | . . . 16 . Impact 16 | . . . 16 . Slashing . | . . . . . Piercing . | . . . . . Sneak Attacks . | . . . . . Combat Hostiles . | . . . . . Follow-up Attacks . | . . . . . Damage Inflicted 930 | . 102 297 531 . Guns 399 | . 102 297 . . Cannons 204 | . . . 204 . Explosions 327 | . . . 327 . Melee . | . . . . . Ramming . | . . . . . Kinetic 360 | . 45 153 162 . Thermal 201 | . 57 144 . . Explosive 327 | . . . 327 . Electromagnetic 42 | . . . 42 . Impact . | . . . . . Slashing . | . . . . . Piercing . | . . . . . Highest Corruption . | . . . . . Average Corruption . | . . . . . Corruption Purged . | . . . . . Corruption Blocked . | . . . . . Overload Shots . | . . . . . Overflow Damage 5 | . . . 5 . Projectiles . | . . . . . Explosions 5 | . . . 5 . Melee . | . . . . . Knockbacks . | . . . . . Impact . | . . . . . Kinetic . | . . . . . Secondary . | . . . . . Self-Inflicted Damage . | . . . . . Shots . | . . . . . Rammed . | . . . . . Targets Rammed . | . . . . . Kicked . | . . . . . Crushed . | . . . . . Highest Temperature 324 | . 54 324 16 . Average Temperature 102 | . 35 137 5 . Received Heat Transfer 447 | . 96 90 252 9 Siege Activations . | . . . . . Robots Corrupted . | . . . . . Combat Hostiles . | . . . . . Parts Fried . | . . . . . Impact Corruptions . | . . . . . Robots Melted . | . . . . . Combat Hostiles . | . . . . . Parts Melted 3 | . . 1 2 . Heat Transferred 458 | . 125 333 . . Parts Sabotaged . | . . . . . Parts Stolen . | . . . . . Parts Stripped . | . . . . . Power Chain Reactions . | . . . . . Alert | -11 -10 -10 -10 -9 ------- Run | Yrd Mat Min Sub Rec Peak Influence 176 | . 95 176 . 40 Initial 36 | . . 36 . 12 Average 43 | . 51 51 . 13 Maximum Alert Level . | . . . . . Low Security (%) 100 | 100 100 100 . 100 Level 1 . | . . . . . Level 2 . | . . . . . Level 3 . | . . . . . Level 4 . | . . . . . Level 5 . | . . . . . High Security . | . . . . . Max Security . | . . . . . Squads Dispatched 3 | . 2 1 . . Investigation 1 | . . 1 . . Extermination . | . . . . . Reinforcement 2 | . 2 . . . Assault . | . . . . . Garrison . | . . . . . Intercept . | . . . . . Searches Triggered . | . . . . . Construction Impeded . | . . . . . Haulers Reinforced . | . . . . . Active Scanning Responses . | . . . . . Cargo Convoy Interrupts . | . . . . . Stealth | -11 -10 -10 -10 -9 --------- Run | Yrd Mat Min Sub Rec Distress Signals . | . . . . . Communications Jammed . | . . . . . Distress Signals . | . . . . . Times Spotted 26 | . 5 6 11 4 Peak Tracking Total 3 | . 2 3 2 2 Tactical Retreats 3 | . . . 2 1 Traps | -11 -10 -10 -10 -9 ------- Run | Yrd Mat Min Sub Rec Traps Triggered . | . . . . . Indirectly . | . . . . . Trap Hack Attempts . | . . . . . Triggered . | . . . . . Disarmed . | . . . . . Reprogrammed . | . . . . . Reused . | . . . . . Traps Extracted . | . . . . . Installed 4 | . . 3 1 . Triggered . | . . . . . Machines | -11 -10 -10 -10 -9 ---------- Run | Yrd Mat Min Sub Rec Machines Disabled 1 | . . . 1 . Max in Single Turn 1 | . . . 1 . Machines Repaired . | . . . . . Machines Dismantled . | . . . . . Machines Sabotaged . | . . . . . Overloaded Fab Kills . | . . . . . Hacking | -11 -10 -10 -10 -9 --------- Run | Yrd Mat Min Sub Rec Machines Accessed 7 | . . 2 3 2 Terminals 2 | . . . . 2 Fabricators . | . . . . . Repair Stations . | . . . . . Recycling Units . | . . . . . Scanalyzers . | . . . . . Garrison Access . | . . . . . Total Hacks 10 | . . 2 5 3 Successful 10 | . . 2 5 3 Failed . | . . . . . Catastrophic . | . . . . . Database Lockouts . | . . . . . Manual 2 | . . . . 2 Terminals 3 | . . . . 3 Fabricators . | . . . . . Repair Stations . | . . . . . Recycling Units . | . . . . . Scanalyzers . | . . . . . Garrison Access . | . . . . . Terminal Hacks 8 | . . 2 5 1 Record 2 | . . . 2 . Open Door 3 | . . 2 1 . Alert Level 1 | . . . . 1 Derelict Proto ID Bank 1 | . . . 1 . Release Object 1 | . . . 1 . Fabricator Hacks . | . . . . . Repair Station Hacks . | . . . . . Recycling Unit Hacks . | . . . . . Scanalyzer . | . . . . . Garrison Access Hacks . | . . . . . Unauthorized Hacks 2 | . . . . 2 Terminals 2 | . . . . 2 Botnet 2 | . . . . 2 Fabricators . | . . . . . Repair Stations . | . . . . . Recycling Units . | . . . . . Scanalyzers . | . . . . . Garrison Access . | . . . . . Data Cores Recovered . | . . . . . Used . | . . . . . Hacking Detections 1 | . . . . 1 Full Trace Events . | . . . . . Feedback Events . | . . . . . Feedback Blocked . | . . . . . Robot Schematics Acquired . | . . . . . Robots Built . | . . . . . Authchips . | . . . . . Time . | . . . . . Total Robot Build Rating . | . . . . . Part Schematics Acquired . | . . . . . Parts Built . | . . . . . Authchips . | . . . . . Time . | . . . . . Total Part Build Rating . | . . . . . Parts Repaired . | . . . . . Time . | . . . . . Parts Recycled . | . . . . . Recycled Matter . | . . . . . Retrieved Matter . | . . . . . Retrieved Components . | . . . . . Parts Scanalyzed . | . . . . . Part Schematics Acquired . | . . . . . Parts Damaged . | . . . . . Bothacking | -11 -10 -10 -10 -9 ------------ Run | Yrd Mat Min Sub Rec Used RIF Installer . | . . . . . Robots Hacked . | . . . . . Non-combat . | . . . . . Combat . | . . . . . Robot Hacks Applied . | . . . . . Relay Couplers Released . | . . . . . Fabnet Peak Effective % . | . . . . . Robots Rewired . | . . . . . Allies Hacked . | . . . . . Hacks Repelled . | . . . . . Allies | -11 -10 -10 -10 -9 -------- Run | Yrd Mat Min Sub Rec Total Allies 9 | . . 3 6 . Largest Group 5 | . . 3 5 3 Highest-Rated Group 95 | . . 40 95 57 Highest-Rated Ally 19 | . . 16 19 19 Total Orders . | . . . . . Ally Attacks 56 | . . . 51 5 Total Damage 773 | . . . 664 109 Kills 11 | . . . 10 1 Allies Corrupted . | . . . . . Allies Melted . | . . . . . Intel | -11 -10 -10 -10 -9 ------- Run | Yrd Mat Min Sub Rec Robot Analysis Total . | . . . . . Derelict Logs Recovered 3 | . . 1 2 . Drone Launches . | . . . . . Drone Recoveries . | . . . . . Exploration | -11 -10 -10 -10 -9 ------------- Run | Yrd Mat Min Sub Rec Turns Passed 3924 | 61 312 1059 2211 281 Spaces Moved 2564 | 37 157 407 1702 261 Core 21 | 21 . . . . Treads 596 | . 75 407 114 . Legs 98 | 16 82 . . . Wheels 1849 | . . . 1588 261 Hover . | . . . . . Flight . | . . . . . Fastest Speed 50 | 50 120 240 107 107 Average Speed 140 | 95 177 240 118 107 Slowest Speed 240 | 120 240 240 240 107 Overloaded Moves . | . . . . . Propulsion Burnouts . | . . . . . Robots Hopped . | . . . . . Cave-ins Triggered . | . . . . . Exploration Rate (%) 48 | 3 27 74 81 58 Regions Visited 4 Branch Regions 3 Pre-discovered Areas 1 | . . 1 . . Known Exits Taken . | . . . . . Unknown Exits Taken 4 | 1 1 1 1 . Scrap Searched 4 | . . . 4 . Spaces Dug . | . . . . . Terrain Destroyed 13 | . . . 13 . Melee . | . . . . . Projectile . | . . . . . AOE 13 | . . . 13 . Terrain Rammed . | . . . . . Walls Destroyed . | . . . . . Machines Disabled . | . . . . . Actions | -11 -10 -10 -10 -9 --------- Run | Yrd Mat Min Sub Rec Total 2798 | 60 175 464 1837 262 Wait 96 | 9 . 31 56 . Move 2560 | 36 156 406 1701 261 Hop . | . . . . . Pick Up 30 | 8 3 9 10 . Fast Attach 5 | 4 1 . . . Attach 5 | 2 . 1 2 . Detach 1 | . 1 . . . Swap 17 | 1 4 1 10 1 Drop 23 | . 2 . 21 . Fire 41 | . 8 13 20 . Melee 16 | . . . 16 . Ram . | . . . . . Kick . | . . . . . Crush . | . . . . . Escape Stasis . | . . . . . Rewire . | . . . . . Trap 4 | . . 3 1 . Miscellaneous . | . . . . . Route ------- -11/Scrapyard -10/Materials -10/Mines (discovered 4 exits: [*Mat x2] / [*Exi] / *Sub) -10/Subcaves (discovered 2 exits: [*Mat] / *Rec) -9/Recycling History --------- Turn | Location | Event 23 | -11/Scrapyard | Discovered new exit (range 16) 62 | -11/Scrapyard | Entered Materials 312 | -10/Materials | Build established: Mutant 340 | -10/Materials | Discovered new exit (range 12) 374 | -10/Materials | Entered Mines 380 | -10/Mines | Met a Derelict shopkeep closing up shop 495 | -10/Mines | Discovered new exit (range 7) 635 | -10/Mines | Found a hidden stash of uninstalled traps 734 | -10/Mines | Learned location of Storage (-9) 744 | -10/Mines | Found a damaged Exp. Sensor Array with a note attached 749 | -10/Mines | Found Prototype Device 1029 | -10/Mines | Deemed a non-threat by the Exiles lab entrance 1029 | -10/Mines | Discovered new exit (range 5) 1162 | -10/Mines | Found the Drone Emporium 1173 | -10/Mines | Found Prototype Device 1275 | -10/Mines | Discovered new exit (range 15) 1376 | -10/Mines | Discovered new exit (range 11) 1383 | -10/Mines | Assisted by bots powering up and referring to "LRC-V3" 1433 | -10/Mines | Entered Subcaves 1433 | -10/Subcaves | Accompanied by 3 allies 1467 | -10/Subcaves | Learned Materials garrison access intel 1496 | -10/Subcaves | Learned 4 Materials zone layouts 1710 | -10/Subcaves | Lost 3 allies 1720 | -10/Subcaves | Core integrity fell below 50% 1744 | -10/Subcaves | Shifting Twisted Machinery released Mak. Hacking Suite 1754 | -10/Subcaves | Shifting Twisted Machinery released Sub. Optics 1971 | -10/Subcaves | Shifting Twisted Machinery released Mak. Kinetic Plating 1980 | -10/Subcaves | Shifting Twisted Machinery released Mak. Light Armor Plating 2250 | -10/Subcaves | Shifting Twisted Machinery released Sub. Power Source 2255 | -10/Subcaves | Shifting Twisted Machinery released Flamer 2332 | -10/Subcaves | Visited triangular shrine 2339 | -10/Subcaves | Found Prototype Device 2340 | -10/Subcaves | Identified V3-11A's Pendant 2345 | -10/Subcaves | Befriended Subdweller 2455 | -10/Subcaves | Befriended Subdweller 2495 | -10/Subcaves | Befriended Subdweller 2530 | -10/Subcaves | Befriended Subdweller 2668 | -10/Subcaves | Found SUBCON Basin 2780 | -10/Subcaves | Befriended Subdweller 2941 | -10/Subcaves | Discovered new exit (range 6) 3361 | -10/Subcaves | A swath of the cavern ceiling suddenly collapsed 3440 | -10/Subcaves | Visited 4L-MR0's lab 3505 | -10/Subcaves | Befriended Subdweller 3615 | -10/Subcaves | Discovered new exit (range 16) 3644 | -10/Subcaves | Entered Recycling 3644 | -9/Recycling | Accompanied by 3 allies 3645 | -9/Recycling | Met a Zionite searching for Scraptown 3886 | -9/Recycling | Core integrity fell below 20% 3892 | -9/Recycling | Lost 3 allies 3924 | -9/Recycling | Identified Exp. Sensor Array 3925 | -9/Recycling | Destroyed by Y-45 Defender with Heavy Assault Rifle Last Messages --------------- 03834_ Connecting with Terminal... >>Alert(Check) Current Alert Level: Low Security >>Trojan(Botnet) Trojan loaded successfully. Testing... Terminal linked with 1 system. Awaiting botnet instructions. 03855_ P-60 Hacker destroyed. 03856_ S-10 Pest springs to life. 03857_ D-53 Grenadier springs to life. 03857_ S-10 Pest destroyed. 03859_ ZU-LCD(R) destroyed. 03861_ Y1-50M(R) destroyed. 03876_ Lgt. Cannon destroyed. 03887_ The unstable cave ceiling collapses. 03901_ U-05 Engineer lays Concrete. 03923_ Y-45 Defender springs to life. 03924_ Identified Exp. Sensor Array. 03925_ Acquired 10 matter. Map ----- +----------------------------------------------------+ | | | | | | | ?????????????????????????????????????????????????? | | ?????????????????????????????????????????????????? | | ?????????????????????????????????????????????????? | | ?????????????????????????????????????????????????? | | ?????????????????????????????????????????????????? | | ?????????????????????????????????????????????????? | | ?????????????????????????????????????????????????? | | ?????????????????????????????????????????????????? | | ?????????????????????????????????????????????????? | | ?????????????????????????????????????????????????? | | ?????????????????????????????????????????????????? | | ?????????????????????????????????????????????????? | | ??????????????????######?????????????????????????? | | ????????????????? #?????????????????????????? | | ??????????????# """ #?????????????????????????? | | ??????????????# """ #?????????????????????????? | | ??????????????# """ #?????????????????????????? | | ??????????????# #?????????????????????????? | | ??????????????# #?????????????????????????? | | ??????????????# #?????????????????????????? | | ??????????????? "T" #####?????????????????????? | | ?????????????????"" ?#%%%#?????????????????????? | | ??????????????#####+#### @%## "Y ??????????????? | | ??????????????# "" ??????????????? | | ??????????????# ??????????? | | ??????????????# Y ??????????? | | ??????????????# ## #####+############+?????????? | | ??????????????# ####???????????????????????????? | | ????????""????# #??????????????????????????????? | | ????????""""??# #??????????????????????????????? | | ?????# """"" # #??????????????????????????????? | | ?????# + #??????????????????????????????? | | ?????# """"" # #??????????????????????????????? | | ????????""""??# ####???????????????????????????? | | ????????""????# +???????????????????????????? | | ??????????????# ####???????????????????????????? | | ??????????????# ""#????????????????????????????? | | ??????????????# ? Y"#????????????????????????????? | | ??????"T"####?# ""#????????????????????????????? | | ?????? #? ###???????????????????????????## | | ???????"" """ # [#???????????????????????????# | | ???????"" """ + [[#???????????????????????????# | | ???????"" """ # [ #???????????????????????????# | | ?????? # ###???????????????????????????# | | ??????#######?# #????????????????????????????### | | ??????????????# #????????????????????????????? | | ???????????#### #????????????????????????????# | +----------------------------------------------------+ Best States ------------- Heat Dissipation 25 Energy Generation 14 Energy Capacity 450 Matter Stores 300 Matter Capacity 300 Sight Range 16 Terrain Scan Density 10 Armor Coverage 100 Evasion (%) 55 Recoil Reduction 2 Item Schematics ----------------- None Robot Schematics ------------------ None Fabricated ------------ Nothing Alien Tech Used ----------------- None Achievements -------------- None Challenges ------------ None Game ------ Seed MappingBiometalWarhead Manual? 0 Play Time 00:27:27 Cumulative 233.2 hours Start 2025.05.01 @ 13:36:08 End 2025.05.01 @ 14:04:11 Sessions 1 Manual Loads 0 Difficulty Rogue Special Mode None Game No. 345 Rogue 345 Adventurer 0 Explorer 0 Win Type - Total 1 Types 1/0/0/0/0/0/0/0/0 Lore% 37 Gallery% 64 Achievement% 43 Wizard Run 0 Options --------- Layout 1 ASCII 0 Keyboard 0 Movement Mouse Keybinds 0 Fullscreen 2 Font 24/Smallcaps Map View 50x35 Zoom Use 0% Tactical HUD 1 Map Filters NONE Filters NONE Steam 1 RUN: 05dbe22b-b143-409f-ab7a-7178da87b784